bitfinex-derivatives/quotes_ETHF0:USTF0_20250331
["timestamp","ask_amount","ask_price","bid_price","bid_amount"]
[1743445684209,2.46503,1838.5,1838.4,3.77016038]
[1743445686112,5.67283,1838.5,1838.4,3.76916038]
[1743445688217,5.67283,1838.5,1838.4,0.00816038]
[1743445688621,1.0881,1838.2,1838.1,3.761]
[1743445688918,3.2078,1838.2,1837.5,3.2078]
[1743445689117,1.0884,1837.7,1837.6,5.9626]
[1743445690413,1.0884,1837.7,1837.6,0.7417]
[1743445690620,1.0884,1837.7,1837.6,4.5037]
[1743445690819,1.0884,1837.7,1837.6,5.9523]
[1743445692718,1.0884,1837.7,1837.6,7.04076]
[1743445693027,1.0884,1837.7,1837.6,5.9523]
[1743445693524,1.08838,1837.8,1837.6,7.04072]
[1743445693723,1.08834,1837.8,1837.7,1.4554]
[1743445694118,2.56494,1837.8,1837.7,1.4554]
[1743445704933,1.4766,1837.8,1837.7,1.4554]
[1743445705126,1.08834,1837.8,1837.7,4.6632]
[1743445705827,2.7204,1838.2,1837.7,7.38413]
[1743445706027,1.08826,1838.0,1837.9,4.29606]
[1743445706235,1.08826,1838.0,1837.9,9.48946]
[1743445706430,1.08821,1838.1,1838.0,1.08821]
[1743445706633,1.08821,1838.1,1838.0,1.4324]
[1743445706932,1.08821,1838.1,1838.0,2.133]
[1743445707122,1.08821,1838.1,1838.0,3.22122]
[1743445707326,1.08821,1838.1,1838.0,2.133]
[1743445709135,1.08816,1838.1,1838.0,3.22118]
[1743445709333,1.4202,1838.2,1838.0,2.133]
[1743445709634,1.08813,1838.2,1838.1,2.51365]
[1743445709836,1.08813,1838.2,1838.1,3.19875]
[1743445710337,1.0881,1838.2,1838.1,6.40654]
[1743445710528,1.0881,1838.2,1838.1,5.3184]
[1743445711033,1.0881,1838.2,1838.1,6.40656]
[1743445711637,1.0881,1838.2,1838.1,5.3184]
[1743445712740,1.0881,1838.2,1838.1,6.40656]
[1743445713240,1.0881,1838.2,1838.1,5.3184]
[1743445713636,1.0881,1838.2,1838.1,6.40656]
[1743445713830,1.0881,1838.2,1838.1,5.3184]
[1743445714637,1.0881,1838.2,1838.1,6.40656]
[1743445714842,1.0881,1838.2,1838.1,5.3184]
[1743445715438,1.0881,1838.2,1838.1,6.40656]
[1743445715644,1.0881,1838.2,1838.1,6.40651]
[1743445716939,1.08804,1838.3,1838.2,1.0881]
[1743445717133,2.58486,1838.5,1838.4,1.08798]
[1743445717340,2.58486,1838.5,1838.4,4.29578]
[1743445717543,1.08793,1838.5,1838.4,4.29578]
[1743445717934,1.08793,1838.5,1838.4,5.70958]
[1743445718736,2.58482,1838.6,1838.5,1.08793]
[1743445718936,0.00816038,1838.7,1838.6,1.08787]
[1743445719147,1.09603038,1838.7,1838.6,5.74907]
[1743445719346,0.00816038,1838.7,1838.6,5.74907]
[1743445719751,2.71866,1839.3,1838.6,5.74907]
[1743445719752,0.51006488,1839.6,1838.6,7.1612]
[1743445719936,3.2078,1839.7,1838.5,58.62416038]
[1743445719937,2.44529,1839.5,1839.1,3.2078]
[1743445720136,2.44526,1839.5,1839.3,3.2078]
[1743445720337,2.44523,1839.5,1839.4,1.4534]
[1743445722051,2.44523,1839.5,1839.3,1.08744]
[1743445722052,2.44527,1839.5,1839.3,4.29525]
[1743445722241,1.3579,1839.5,1839.4,2.53619]
[1743445722938,1.3579,1839.5,1839.4,3.25709]
[1743445723653,2.44523,1839.5,1839.4,2.1697]
[1743445724048,1.3579,1839.5,1839.4,3.25709]
[1743445724350,2.44523,1839.5,1839.4,3.25709]
[1743445724753,1.3579,1839.5,1839.4,3.25709]
[1743445725347,0.00816038,1839.6,1839.5,1.08733]
[1743445725547,1.38776038,1839.6,1839.5,9.44383]
[1743445725849,2.47503038,1839.6,1839.5,9.44383]
[1743445726044,2.47503038,1839.6,1839.5,8.3565]
[1743445726249,2.47503038,1839.6,1839.5,5.1487]
[1743445730961,1.08733,1839.5,1839.4,1.08739]
[1743445731160,2.58363,1839.5,1839.4,4.84339]
[1743445731360,2.58363,1839.5,1839.4,6.21179]
[1743445731560,2.58363,1839.5,1839.4,5.1244]
[1743445732058,2.58363,1839.5,1839.4,6.21179]
[1743445732364,2.58363,1839.5,1839.4,5.1244]
[1743445733051,1.08739,1839.4,1839.3,3.2078]
[1743445733251,1.08739,1839.4,1839.3,6.9628]
[1743445733252,2.56149,1839.4,1839.3,6.9628]
[1743445733454,1.4741,1839.4,1839.2,0.7078]
[1743445733757,1.08751,1839.2,1839.1,5.2799]
[1743445734062,1.08751,1839.2,1839.1,9.0349]
[1743445734262,1.08751,1839.2,1839.1,5.8271]
[1743445734558,1.08751,1839.2,1839.1,6.91467]
[1743445734864,1.08751,1839.2,1839.1,10.12247]
[1743445735660,2.56155,1839.3,1839.2,1.08751]
[1743445735958,2.56155,1839.3,1839.2,2.46801]
[1743445736358,1.4741,1839.3,1839.2,2.46801]
[1743445736566,2.56155,1839.3,1839.2,2.46801]
[1743445736763,1.4741,1839.3,1839.2,2.46801]
[1743445736962,2.56155,1839.3,1839.2,2.46801]
[1743445738655,1.4741,1839.3,1839.2,2.46801]
[1743445738962,3.41368038,1839.6,1839.2,2.46801]
[1743445738963,1.08745,1839.4,1839.3,1.0874]
[1743445739161,2.54715,1839.4,1839.3,5.7469]
[1743445740268,2.54709,1839.4,1839.3,5.7469]
[1743445741862,1.4597,1839.4,1839.3,5.7469]
[1743445742268,2.54709,1839.4,1839.3,5.7469]
[1743445743071,1.4597,1839.4,1839.3,5.7469]
[1743445743757,0.00816038,1839.6,1839.5,1.08733]
[1743445744069,0.00816038,1839.6,1839.5,8.04913]
[1743445744265,0.00816038,1839.6,1839.5,9.52133]
[1743445744768,9.1138,1840.6,1839.7,2.71803]
[1743445745066,1.0871,1839.9,1839.8,7.78091]
[1743445745267,1.0871,1839.9,1839.8,3.754]
[1743445746766,1.08716,1839.8,1839.7,0.00816038]
[1743445747069,1.08716,1839.8,1839.7,3.76216038]
[1743445748767,1.08716,1839.8,1839.7,5.21326038]
[1743445749465,1.08716,1839.8,1839.7,3.76216038]
[1743445749767,2.48955,1839.9,1839.7,4.84938038]
[1743445749970,1.4024,1839.9,1839.8,1.08716]
[1743445750166,1.087,1840.1,1839.9,1.08704]
[1743445750478,1.08698,1840.1,1840.0,7.03571]
[1743445751070,1.08698,1840.1,1840.0,5.9487]
[1743445751270,1.08698,1840.1,1840.0,4.4976]
[1743445751769,1.08698,1840.1,1840.0,3.753]
[1743445752271,2.55088,1840.1,1840.0,3.753]
[1743445753366,1.08716,1839.8,1839.7,0.00816038]
[1743445753571,1.08716,1839.8,1839.7,3.76016038]
[1743445754165,2.55106,1839.8,1839.7,3.76016038]
[1743445754762,2.55106,1839.8,1839.7,6.01206038]
[1743445754962,2.55106,1839.8,1839.7,4.50556038]
[1743445755562,2.55106,1839.8,1839.7,3.76016038]
[1743445756974,1.08732,1839.6,1839.4,4.29514]
[1743445757175,1.08732,1839.6,1839.5,5.58473]
[1743445757374,2.54972,1839.6,1839.5,5.8959]
[1743445760677,1.4624,1839.6,1839.5,6.98323]
[1743445760874,0.00816038,1839.7,1839.6,1.08727]
[1743445761073,0.00816038,1839.7,1839.6,3.30307]
[1743445761580,0.00816038,1839.7,1839.6,6.51087]
[1743445762778,1.09538038,1839.7,1839.6,6.51087]
[1743445764272,1.09538038,1839.7,1839.6,5.4236]
[1743445764475,1.09538038,1839.7,1839.6,5.9668]
[1743445765681,1.09538038,1839.7,1839.6,3.751]
[1743445765889,1.09538038,1839.7,1839.6,4.83827]
[1743445766091,1.09538038,1839.7,1839.6,3.751]
[1743445767181,1.09538038,1839.7,1839.6,5.1135]
[1743445767383,1.09538038,1839.7,1839.6,6.20077]
[1743445767592,1.09538038,1839.7,1839.6,9.40857]
[1743445767593,0.00816038,1839.7,1839.6,9.40857]
[1743445768982,1.09538038,1839.7,1839.6,9.40857]
[1743445769384,0.00816038,1839.7,1839.6,9.40857]
[1743445772595,6.88320597,1840.6,1839.9,1.0871]
[1743445772596,1.08708,1840.0,1839.9,1.0871]
[1743445772893,1.08708,1840.0,1839.9,8.0449]
[1743445773492,1.08708,1840.0,1839.9,8.736]
[1743445774493,0.7324,1840.5,1840.0,1.08704]
[1743445774697,2.57532,1840.3,1840.2,1.08689]
[1743445774892,2.57532,1840.3,1840.2,6.26639]
[1743445775089,1.4884,1840.3,1840.2,6.26639]
[1743445775287,2.57526,1840.3,1840.2,6.26639]
[1743445775790,2.57526,1840.3,1840.2,7.00149]
[1743445777191,1.4884,1840.3,1840.2,7.00149]
[1743445777495,0.689,1840.6,1840.5,1.08674]
[1743445777799,1.08669,1840.6,1840.5,4.83574]
[1743445778195,3.2078,1841.1,1840.5,3.749]
[1743445778495,1.4695,1841.3,1840.9,5.92408]
[1743445778689,1.4161,1841.2,1841.1,1.08635]
[1743445779099,1.4161,1841.2,1841.1,4.29415]
[1743445779295,1.4161,1841.2,1841.1,5.72985]
[1743445780089,2.50243,1841.2,1841.1,5.72985]
[1743445780288,2.50243,1841.2,1841.1,5.72989]
[1743445780699,2.50243,1841.2,1841.1,3.2078]
[1743445781405,1.08639,1841.1,1841.0,5.8928]
[1743445781704,2.53959,1841.1,1841.0,5.8928]
[1743445782000,2.53959,1841.1,1841.0,4.4571]
[1743445782702,2.53959,1841.1,1841.0,3.749]
[1743445783098,1.08636,1841.2,1841.0,6.9568]
[1743445783302,1.08636,1841.2,1841.1,1.4873]
[1743445783897,1.08639,1841.1,1841.0,6.9568]
[1743445785511,1.08639,1841.1,1841.0,9.47835]
[1743445785701,1.08639,1841.1,1841.0,8.3919]
[1743445786907,2.71555,1841.4,1841.0,9.47833]
[1743445787109,1.08639,1841.1,1841.0,9.47833]
[1743445788811,1.08638,1841.2,1841.0,8.3919]
[1743445789003,1.08639,1841.1,1841.0,8.3919]
[1743445789200,3.41199,1841.5,1841.0,8.3919]
[1743445789201,1.08633,1841.3,1841.0,8.3919]
[1743445789403,1.08633,1841.2,1841.1,1.4242]
[1743445789804,1.08633,1841.2,1841.1,2.51059]
[1743445790002,3.41199,1841.5,1841.1,2.51059]
[1743445790003,3.2078,1841.9,1841.3,2.71568]
[1743445790209,25.36160828,1842.1,1841.8,3.2078]
[1743445790210,1.4747,1842.0,1841.8,3.2078]
[1743445790403,2.5606,1842.0,1841.9,3.746]
[1743445790603,1.834,1842.0,1841.9,3.746]
[1743445791205,25.36160828,1842.1,1841.9,3.746]
[1743445791504,1.08586,1842.0,1841.9,3.746]
[1743445792506,1.08609,1841.6,1841.5,5.03972]
[1743445792711,1.08609,1841.6,1841.5,7.02102]
[1743445792915,1.08609,1841.6,1841.5,3.745]
[1743445794109,1.08615,1841.5,1841.4,0.00816038]
[1743445794407,1.08615,1841.5,1841.4,3.75316038]
[1743445796011,2.55145,1841.5,1841.4,3.75316038]
[1743445800210,1.4653,1841.5,1841.4,3.75316038]
[1743445800414,2.55145,1841.5,1841.4,3.75316038]
[1743445801214,2.55145,1841.5,1841.4,5.93876038]
[1743445801409,2.55145,1841.5,1841.4,4.50276038]
[1743445801611,8.25925,1841.5,1841.4,0.00816038]
[1743445801921,5.75925,1841.5,1841.4,0.00816038]
[1743445802114,8.25925,1841.5,1841.4,0.00816038]
[1743445803416,2.55145,1841.5,1841.4,0.00816038]
[1743445803617,2.55145,1841.5,1841.4,3.75216038]
[1743445804513,1.4653,1841.5,1841.4,5.13766038]
[1743445804709,2.55145,1841.5,1841.4,5.13766038]
[1743445805220,2.55145,1841.5,1841.4,6.22387038]
[1743445805425,2.55145,1841.5,1841.4,5.13766038]
[1743445805918,2.55145,1841.5,1841.4,8.34546038]
[1743445806318,2.55145,1841.5,1841.4,5.13766038]
[1743445806915,2.55145,1841.5,1841.4,6.22387038]
[1743445807218,2.55145,1841.5,1841.4,8.34546038]
[1743445807413,2.55145,1841.5,1841.4,5.13766038]
[1743445807818,2.55145,1841.5,1841.4,8.34546038]
[1743445808320,2.55145,1841.5,1841.4,3.75216038]
[1743445809323,5.75925,1841.5,1841.4,3.75216038]
[1743445809514,2.55145,1841.5,1841.4,3.75216038]
[1743445811325,5.75925,1841.5,1841.4,3.75116038]
[1743445813226,2.55145,1841.5,1841.4,3.75116038]
[1743445814127,6.87738,1841.8,1841.4,8.46476038]
[1743445814422,1.08614,1841.6,1841.5,2.1966]
[1743445815021,2.56594,1841.6,1841.5,0.6908]
[1743445815626,2.56594,1841.6,1841.5,2.105]
[1743445815824,2.56594,1841.6,1841.5,3.19115]
[1743445816125,2.56589,1841.6,1841.5,2.105]
[1743445818021,0.7426,1842.0,1841.5,2.105]
[1743445818326,1.08593,1841.9,1841.6,5.3812]
[1743445818514,1.08593,1841.9,1841.8,1.08598]
[1743445818719,1.08593,1841.9,1841.7,6.2484]
[1743445818931,1.08569,1842.3,1841.9,2.7147]
[1743445819224,1.0858,1842.1,1842.0,9.8397]
[1743445819421,1.0858,1842.1,1842.0,3.742]
[1743445819724,1.08598,1841.8,1841.6,3.2078]
[1743445819917,1.08598,1841.8,1841.7,3.742]
[1743445820419,3.2078,1841.8,1841.5,1.4695]
[1743445820622,1.08598,1841.8,1841.7,3.742]
[1743445824324,1.08598,1841.8,1841.7,5.2321]
[1743445825725,1.08609,1841.6,1841.5,1.4695]
[1743445825926,1.08609,1841.6,1841.5,5.2115]
[1743445826831,4.29389,1841.6,1841.5,3.742]
[1743445827126,4.29389,1841.6,1841.4,0.00816038]
[1743445827127,1.08615,1841.5,1841.4,0.00816038]
[1743445832630,1.08615,1841.6,1841.4,0.00816038]
[1743445832832,1.08613,1841.6,1841.4,4.04506038]
[1743445833031,3.2078,1841.9,1841.5,1.4593]
[1743445833233,1.08603,1841.8,1841.6,4.82808]
[1743445833541,1.08603,1841.8,1841.7,2.0657]
[1743445835640,1.08603,1841.8,1841.7,3.15174]
[1743445835837,1.08603,1841.8,1841.7,2.0657]
[1743445836037,2.57146,1841.9,1841.7,5.8067]
[1743445836235,5.92238,1842.1,1841.7,5.8067]
[1743445836236,5.92215,1842.3,1841.8,2.0923]
[1743445836436,3.9445,1842.5,1842.1,3.2078]
[1743445836641,1.08572,1842.3,1842.2,5.8054]
[1743445836937,1.08565,1842.4,1842.2,5.8054]
[1743445837137,1.08564,1842.4,1842.2,5.8054]
[1743445837336,1.08568,1842.3,1842.2,5.8054]
[1743445837643,1.08566,1842.4,1842.2,6.89114]
[1743445838141,1.08574,1842.2,1841.8,6.63177]
[1743445838343,1.08574,1842.2,1842.0,4.29366]
[1743445838635,6.61031,1842.5,1842.0,3.2078]
[1743445838838,1.08572,1842.3,1842.1,1.08579]
[1743445839040,1.08572,1842.3,1842.2,3.741]
[1743445839242,1.08572,1842.3,1842.2,4.4356]
[1743445839439,1.08572,1842.3,1842.2,5.8956]
[1743445839634,1.08572,1842.3,1842.2,4.4356]
[1743445840837,1.08572,1842.3,1842.2,3.741]
[1743445841643,1.08572,1842.3,1841.9,0.6908]
[1743445841644,3.2078,1842.3,1841.9,0.6908]
[1743445841841,1.0858,1842.1,1842.0,3.74]
[1743445842038,1.0858,1842.1,1842.0,3.70686053]
[1743445842843,1.0858,1842.1,1842.0,3.74]
[1743445843040,0.7172,1842.3,1842.0,5.222]
[1743445843241,1.08574,1842.2,1842.1,1.482]
[1743445843441,1.0858,1842.1,1842.0,3.74]
[1743445844249,1.0858,1842.1,1842.0,5.222]
[1743445845547,3.43528,1842.4,1842.0,6.30786]
[1743445845748,3.43528,1842.4,1842.1,1.4194]
[1743445845749,1.08579,1842.2,1842.1,1.4194]
[1743445847350,1.08571,1842.3,1842.1,2.50516]
[1743445847536,1.08571,1842.3,1842.2,2.8354]
[1743445848639,1.0858,1842.1,1842.0,3.74]
[1743445848842,1.0858,1842.1,1842.0,3.70686053]
[1743445849245,5.42866,1842.3,1841.9,2.1014]
[1743445849246,1.08586,1842.0,1841.9,2.1014]
[1743445849446,1.08586,1842.0,1841.9,5.8404]
[1743445850049,1.08586,1842.0,1841.9,6.9263]
[1743445850551,1.08586,1842.0,1841.9,5.8404]
[1743445852554,1.08586,1842.0,1841.9,4.4689]
[1743445852747,1.08592,1841.9,1841.8,3.9189]
[1743445852948,1.08592,1841.9,1841.8,7.6579]
[1743445853546,1.08592,1841.9,1841.8,9.1218]
[1743445853753,1.08591,1842.0,1841.9,1.08591]
[1743445854050,3.43201,1842.2,1841.9,2.54976]
[1743445854245,1.08586,1842.0,1841.9,1.4639]
[1743445854447,1.08592,1841.9,1841.8,7.6579]
[1743445854647,1.08592,1841.9,1841.8,10.23078]
[1743445855646,2.71437,1842.2,1841.8,9.1448]
[1743445855852,1.08583,1842.1,1842.0,4.29359]
[1743445856052,2.48302,1842.3,1842.2,1.08574]
[1743445856351,1.08574,1842.2,1842.1,1.4869]
[1743445856655,1.08574,1842.2,1842.1,2.57266]
[1743445857256,3.2078,1842.6,1842.4,1.08558]
[1743445857445,3.2078,1842.6,1842.5,5.2259]
[1743445857446,1.0855,1842.6,1842.5,5.2259]
[1743445862156,4.2933,1842.6,1842.5,5.2259]
[1743445862468,4.2933,1842.6,1842.4,0.00816038]
[1743445862469,1.08556,1842.5,1842.4,0.00816038]
[1743445862658,4.04396,1842.5,1842.4,0.00816038]
[1743445864660,1.4983,1842.5,1842.4,0.00816038]
[1743445864852,1.4983,1842.5,1842.4,1.09378038]
[1743445865056,0.7088,1842.8,1842.7,1.08545]
[1743445865251,25.36160828,1843.1,1842.7,6.9458]
[1743445865457,25.36160828,1843.1,1842.8,1.4491]
[1743445865665,1.08533,1842.9,1842.8,1.4491]
[1743445865852,25.36160828,1843.1,1843.0,1.08527]
[1743445866057,25.34501576,1843.1,1843.0,4.82327]
[1743445866260,3.2078,1843.8,1843.0,7.09098984]
[1743445866461,27.4143808,1844.0,1843.9,1.08474]
[1743445866655,27.4143808,1844.0,1843.9,3.2078]
[1743445866864,27.4143808,1844.0,1843.8,1.48993801]
[1743445867067,1.08474,1843.9,1843.8,0.00813801]
[1743445867378,2.53524,1843.9,1843.8,0.00813801]
[1743445867876,5.74304,1843.9,1843.8,0.00813801]
[1743445868077,6.42824,1843.9,1843.8,0.00813801]
[1743445868267,5.74304,1843.9,1843.8,0.00813801]
[1743445868575,2.53524,1843.9,1843.8,0.00813801]
[1743445869275,2.53524,1843.9,1843.8,3.74513801]
[1743445869980,1.4505,1843.9,1843.8,3.74513801]
[1743445870475,2.53524,1843.9,1843.8,3.74513801]
[1743445871879,1.4505,1843.9,1843.8,3.74513801]
[1743445872374,3.2078,1844.4,1843.8,9.45293801]
[1743445872575,1.433,1844.3,1844.1,1.08457]
[1743445872776,1.433,1844.3,1844.2,5.1688]
[1743445872969,4.29229,1844.4,1844.2,5.1688]
[1743445873165,4.29229,1844.4,1844.2,5.8704]
[1743445873477,2.5363,1844.3,1844.2,5.8704]
[1743445873673,1.4518,1844.3,1844.2,5.8704]
[1743445873974,1.4518,1844.3,1844.2,6.95496]
[1743445874373,1.4518,1844.3,1844.2,5.8704]
[1743445874877,1.08447,1844.4,1844.2,6.95494]
[1743445875076,2.53622,1844.5,1844.3,1.08449]
[1743445875277,2.53622,1844.5,1844.2,10.16272]
[1743445875474,1.4518,1844.5,1844.3,1.08447]
[1743445875670,1.4518,1844.5,1844.4,1.4328]
[1743445875974,1.4518,1844.5,1844.2,7.6454]
[1743445876170,1.4518,1844.5,1844.2,9.0327]
[1743445876567,1.4518,1844.5,1844.2,10.11721]
[1743445876780,1.4518,1844.5,1844.2,9.0327]
[1743445877082,3.2078,1845.0,1844.5,1.08435]
[1743445877266,2.51442,1844.7,1844.6,5.1223]
[1743445877580,1.08433,1844.6,1844.5,3.735]
[1743445877778,1.0845,1844.3,1844.2,6.9428]
[1743445877972,1.0845,1844.3,1843.8,0.00813801]
[1743445877973,5.91895,1844.4,1844.0,4.5951]
[1743445878175,2.51466,1844.2,1844.1,3.735]
[1743445878387,1.08468,1844.0,1843.8,0.00813801]
[1743445878679,1.4301,1843.9,1843.8,2.48023801]
[1743445878878,1.4301,1843.9,1843.8,6.21523801]
[1743445879079,0.7254,1844.4,1843.8,7.63043801]
[1743445879271,2.48226,1844.3,1844.0,4.29245]
[1743445879477,1.3977,1844.3,1844.1,5.1349]
[1743445879679,1.08456,1844.2,1844.1,5.1349]
[1743445880079,1.3977,1844.3,1844.1,5.1349]
[1743445880878,1.3977,1844.3,1844.2,2.1278]
[1743445881079,2.48224,1844.3,1844.2,2.1278]
[1743445882179,1.3977,1844.3,1844.2,3.91906]
[1743445882382,2.4822,1844.3,1844.2,2.8345]
[1743445883084,1.3977,1844.3,1844.2,3.91906]
[1743445883277,1.3977,1844.3,1844.2,2.8345]
[1743445883278,2.4822,1844.3,1844.2,2.8345]
[1743445883780,2.4822,1844.3,1844.2,4.4407]
[1743445884177,1.3977,1844.3,1844.2,5.52526]
[1743445884378,1.08443,1844.5,1844.3,1.08448]
[1743445884581,3.2078,1844.9,1844.4,1.08445]
[1743445884873,1.08433,1844.6,1844.5,3.734]
[1743445885386,1.08439,1844.5,1844.4,3.734]
[1743445885580,5.77199,1844.5,1844.4,3.734]
[1743445885778,1.0845,1844.3,1844.2,2.1691]
[1743445885985,1.0845,1844.3,1844.2,5.9031]
[1743445886986,1.0845,1844.3,1844.2,2.1691]
[1743445887185,1.0845,1844.3,1844.2,4.4407]
[1743445887484,1.0845,1844.3,1844.2,5.9031]
[1743445888589,1.0845,1844.3,1844.2,6.98766]
[1743445888888,1.0845,1844.3,1844.2,5.9031]
[1743445889090,1.0845,1844.3,1844.2,6.98766]
[1743445889385,1.0845,1844.3,1844.2,5.9031]
[1743445889586,1.08448,1844.4,1844.2,6.98766]
[1743445889886,2.48928,1844.4,1844.2,6.98766]
[1743445890089,2.48928,1844.4,1844.3,0.7064]
[1743445890795,1.0845,1844.3,1844.2,0.7067]
[1743445890982,2.4893,1844.3,1844.2,5.8806]
[1743445891290,2.4893,1844.3,1844.2,4.4407]
[1743445892291,2.4893,1844.3,1844.2,5.8499]
[1743445892587,2.4893,1844.3,1844.2,3.734]
[1743445892588,5.6971,1844.3,1844.2,3.734]
[1743445893392,1.08462,1844.1,1844.0,4.4404]
[1743445894191,1.08462,1844.1,1844.0,5.8842]
[1743445894489,1.08474,1843.9,1843.8,3.74213801]
[1743445897493,2.48181,1844.0,1843.8,3.74213801]
[1743445897689,1.08474,1843.9,1843.8,3.74213801]
[1743445897891,2.44884,1843.9,1843.8,3.74213801]
[1743445899294,1.08474,1843.9,1843.8,3.74213801]
[1743445900790,1.08474,1843.9,1843.8,0.00813801]
[1743445900995,1.3641,1844.0,1843.8,0.00813801]
[1743445901291,1.08474,1843.9,1843.8,0.00813801]
[1743445902089,1.08474,1843.9,1843.8,1.42883801]
[1743445902491,1.08474,1843.9,1843.8,2.51363801]
[1743445902697,1.08474,1843.9,1843.8,1.42883801]
[1743445902991,1.08474,1843.9,1843.8,0.00813801]
[1743445903294,1.3641,1844.0,1843.8,2.45980801]
[1743445903490,2.44878,1844.0,1843.9,2.1048]
[1743445904395,2.44878,1844.0,1843.9,0.7379]
[1743445904598,2.44878,1844.0,1843.8,0.00813801]
[1743445904599,1.3641,1844.0,1843.8,0.00813801]
[1743445904798,1.3869,1843.9,1843.8,1.83079801]
[1743445904984,2.47164,1843.9,1843.8,3.19769801]
[1743445905189,2.47164,1843.9,1843.8,2.11293801]
[1743445905589,2.47164,1843.9,1843.8,3.19773801]
[1743445905892,2.47164,1843.9,1843.8,2.11293801]
[1743445906692,2.47164,1843.9,1843.8,0.00813801]
[1743445908796,1.3869,1843.9,1843.8,1.09293801]
[1743445909001,1.3869,1843.9,1843.8,2.13283801]
[1743445909299,3.938,1844.2,1843.8,2.13283801]
[1743445909300,0.7302,1844.2,1843.8,4.84478801]
[1743445909598,1.5028,1844.1,1844.0,1.08468]
[1743445909798,2.58742,1844.1,1844.0,2.44528]
[1743445909991,1.5028,1844.1,1844.0,2.44528]
[1743445910392,1.08452,1844.3,1844.2,1.08456]
[1743445910598,2.58732,1844.3,1844.2,3.734]
[1743445910997,2.58732,1844.3,1844.2,5.8173]
[1743445911591,1.5028,1844.3,1844.2,5.8173]
[1743445911795,2.5873,1844.3,1844.2,5.8173]
[1743445912094,2.5873,1844.3,1844.2,6.90186]
[1743445912504,2.5873,1844.3,1844.2,5.8173]
[1743445912700,2.5873,1844.3,1844.2,6.90186]
[1743445912900,1.5028,1844.3,1844.2,6.90186]
[1743445913095,2.5873,1844.3,1844.2,5.8173]
[1743445913296,2.5873,1844.3,1844.2,6.90186]
[1743445913803,2.5873,1844.3,1844.2,5.8173]
[1743445914107,2.5873,1844.3,1844.2,6.90186]
[1743445914108,1.5028,1844.3,1844.2,6.90186]
[1743445914803,5.906,1845.3,1844.2,6.90186]
[1743445914804,3.2078,1845.0,1844.4,2.71102]
[1743445915105,1.08423,1844.8,1844.5,3.734]
[1743445915309,1.08421,1844.8,1844.6,1.08428]
[1743445915598,1.468,1844.7,1844.6,3.28858]
[1743445916104,2.55227,1844.7,1844.6,3.28858]
[1743445916306,1.08425,1844.8,1844.6,3.28861]
[1743445916506,1.08425,1844.8,1844.7,1.5045]
[1743445916999,1.08427,1844.7,1844.6,1.78412]
[1743445917200,1.08424,1844.8,1844.6,3.28862]
[1743445917499,1.08424,1844.8,1844.7,1.5045]
[1743445918306,0.6798,1845.0,1844.7,1.5045]
[1743445918700,1.08415,1844.9,1844.7,2.58873]
[1743445918900,1.08415,1844.9,1844.8,1.4831]
[1743445919502,0.6798,1845.0,1844.8,2.56729]
[1743445919709,1.08415,1844.9,1844.8,1.4831]
[1743445920407,3.2078,1845.2,1844.8,1.4831]
[1743445920608,1.08415,1844.9,1844.8,1.4831]
[1743445920811,1.08412,1845.0,1844.8,2.57540801]
[1743445921001,5.91776,1845.2,1844.8,5.22423801]
[1743445921306,1.08415,1844.9,1844.8,3.74113801]
[1743445921898,1.81195,1844.9,1844.8,0.00813801]
[1743445922306,0.7466,1845.0,1844.8,0.00813801]
[1743445922502,4.29195,1844.9,1844.8,0.00813801]
[1743445922712,1.08415,1845.0,1844.8,1.09228801]
[1743445922907,1.08415,1844.9,1844.8,0.00813801]
[1743445923103,1.08415,1844.9,1844.8,1.47343801]
[1743445923603,1.08415,1844.9,1844.8,2.55764801]
[1743445923807,1.08415,1844.9,1844.8,1.47343801]
[1743445924011,1.08415,1844.9,1844.8,0.00813801]
[1743445924515,1.08415,1844.9,1844.7,3.733]
[1743445924516,1.08445,1844.4,1844.3,3.2078]
[1743445924704,2.71068,1844.7,1844.3,10.18608]
[1743445924705,1.08443,1844.5,1844.3,10.18608]
[1743445924901,1.08443,1844.5,1844.4,1.4814]
[1743445925210,1.08442,1844.5,1844.3,8.70466]
[1743445925409,1.08442,1844.5,1844.4,1.4814]
[1743445925610,1.08445,1844.4,1844.3,3.732]
[1743445925809,2.71098,1844.5,1844.2,0.00813801]
[1743445925810,1.0845,1844.3,1844.2,3.74013801]
[1743445926612,1.0845,1844.3,1844.2,5.22153801]
[1743445927107,1.0845,1844.3,1844.2,0.00813801]
[1743445928001,1.0845,1844.3,1844.2,1.43573801]
[1743445928603,1.0845,1844.3,1844.2,0.00813801]
[1743445929007,1.0845,1844.3,1844.2,1.43573801]
[1743445929205,1.79019,1844.4,1844.2,1.43573801]
[1743445929406,0.00806348,1844.6,1844.2,1.43573801]
[1743445929606,1.08445,1844.4,1844.3,1.08447]
[1743445929813,5.92674348,1844.6,1844.2,2.52028801]
[1743445930014,1.08448,1844.4,1844.3,1.4276]
[1743445930214,1.08445,1844.4,1844.3,2.51208]
[1743445930414,1.08445,1844.4,1844.3,1.4276]
[1743445930805,1.0845,1844.3,1844.2,0.00813801]
[1743445931621,1.0845,1844.3,1844.2,1.49283801]
[1743445933023,1.0845,1844.3,1844.2,0.00813801]
[1743445936121,2.4622,1844.3,1844.2,0.00813801]
[1743445938434,2.4622,1844.3,1844.2,0.69743801]
[1743445939828,1.3777,1844.3,1844.2,5.51499801]
[1743445940033,3.21586348,1844.6,1844.2,8.36513801]
[1743445940233,1.08445,1844.4,1844.3,1.4459]
[1743445940534,1.0845,1844.3,1844.2,4.43043801]